[Event "Early-Titled-Tuesday-Blitz-March-05-2024"]
[Site "Chess.com"]
[Date "2024.03.05"]
[Round "1"]
[White "Mops_2004"]
[Black "iJueles"]
[Result "1/2-1/2"]
[WhiteElo "2847"]
[BlackElo "2479"]
[TimeControl "180+1"]
[EndTime "8:10:48 PST"]
[Termination "Game drawn by stalemate"]

1. g3 {[%clk 0:03:00.9]} 1... d5 {[%clk 0:02:58]} 2. Nf3 {[%clk 0:03:00.7]} 2...
Nf6 {[%clk 0:02:57.7]} 3. Bg2 {[%clk 0:03:00.6]} 3... c6 {[%clk 0:02:54]} 4. O-O
{[%clk 0:03:00.2]} 4... Bg4 {[%clk 0:02:52.6]} 5. h3 {[%clk 0:02:59.7]} 5...
Bxf3 {[%clk 0:02:52.2]} 6. Bxf3 {[%clk 0:02:58.3]} 6... Nbd7 {[%clk 0:02:52.3]}
7. d3 {[%clk 0:02:57.7]} 7... e6 {[%clk 0:02:51.3]} 8. Bg2 {[%clk 0:02:57.1]}
8... Be7 {[%clk 0:02:48.2]} 9. e4 {[%clk 0:02:57.1]} 9... O-O {[%clk 0:02:48.3]}
10. Qe2 {[%clk 0:02:56.8]} 10... a5 {[%clk 0:02:44.6]} 11. a4 {[%clk 0:02:55.8]}
11... Qc7 {[%clk 0:02:39.4]} 12. Kh1 {[%clk 0:02:47.4]} 12... Rfe8 {[%clk
0:02:37.5]} 13. f4 {[%clk 0:02:46.9]} 13... e5 {[%clk 0:02:34.1]} 14. f5 {[%clk
0:02:44.2]} 14... dxe4 {[%clk 0:02:27.8]} 15. dxe4 {[%clk 0:02:44.1]} 15... Nf8
{[%clk 0:02:24.3]} 16. Nd2 {[%clk 0:02:40.9]} 16... Rad8 {[%clk 0:02:21.8]} 17.
g4 {[%clk 0:02:37.8]} 17... N6d7 {[%clk 0:02:19.8]} 18. Nf3 {[%clk 0:02:31.4]}
18... Nb6 {[%clk 0:01:54.7]} 19. g5 {[%clk 0:02:28.9]} 19... g6 {[%clk
0:01:38.9]} 20. Nh2 {[%clk 0:02:26.6]} 20... Bc5 {[%clk 0:01:36.3]} 21. Ng4
{[%clk 0:02:24]} 21... Nfd7 {[%clk 0:01:27.8]} 22. fxg6 {[%clk 0:02:15.9]} 22...
fxg6 {[%clk 0:01:25.9]} 23. Nh6+ {[%clk 0:02:15.4]} 23... Kg7 {[%clk 0:01:25.1]}
24. Rf7+ {[%clk 0:02:11.5]} 24... Kh8 {[%clk 0:01:25.4]} 25. Bd2 {[%clk
0:01:59.1]} 25... Nc8 {[%clk 0:01:19.9]} 26. Raf1 {[%clk 0:01:34.9]} 26... Bf8
{[%clk 0:01:16.9]} 27. Bc3 {[%clk 0:01:16.5]} 27... Nd6 {[%clk 0:01:03.2]} 28.
Qg4 {[%clk 0:01:11.2]} 28... Bxh6 {[%clk 0:00:52.3]} 29. gxh6 {[%clk 0:00:47.1]}
29... Nxf7 {[%clk 0:00:52.4]} 30. Rxf7 {[%clk 0:00:47.1]} 30... Qd6 {[%clk
0:00:50.7]} 31. Bxa5 {[%clk 0:00:42.9]} 31... b6 {[%clk 0:00:50.1]} 32. Bc3
{[%clk 0:00:41]} 32... Re7 {[%clk 0:00:36.5]} 33. Rf1 {[%clk 0:00:37.6]} 33...
Kg8 {[%clk 0:00:28.5]} 34. Qg5 {[%clk 0:00:32.7]} 34... Rf8 {[%clk 0:00:26.2]}
35. Rxf8+ {[%clk 0:00:24.9]} 35... Nxf8 {[%clk 0:00:26.7]} 36. Bf1 {[%clk
0:00:23.5]} 36... Nd7 {[%clk 0:00:25.1]} 37. Bc4+ {[%clk 0:00:23.1]} 37... Kf8
{[%clk 0:00:25.8]} 38. Qg4 {[%clk 0:00:22]} 38... Ke8 {[%clk 0:00:25.2]} 39. Qf3
{[%clk 0:00:19.7]} 39... Qf6 {[%clk 0:00:24.7]} 40. Qg3 {[%clk 0:00:17.3]} 40...
Nc5 {[%clk 0:00:23.5]} 41. Qg4 {[%clk 0:00:15.8]} 41... Ne6 {[%clk 0:00:22.1]}
42. b4 {[%clk 0:00:12.5]} 42... Kd7 {[%clk 0:00:20.4]} 43. b5 {[%clk 0:00:12.9]}
43... Kc7 {[%clk 0:00:20.3]} 44. bxc6 {[%clk 0:00:12.4]} 44... Kxc6 {[%clk
0:00:21.2]} 45. Bd5+ {[%clk 0:00:12.5]} 45... Kc7 {[%clk 0:00:21.9]} 46. Bb4
{[%clk 0:00:12.3]} 46... Nc5 {[%clk 0:00:21.7]} 47. a5 {[%clk 0:00:12.6]} 47...
Rd7 {[%clk 0:00:18.2]} 48. axb6+ {[%clk 0:00:12.1]} 48... Kxb6 {[%clk
0:00:19.1]} 49. Qg1 {[%clk 0:00:11.2]} 49... Rc7 {[%clk 0:00:18.9]} 50. Qb1
{[%clk 0:00:09]} 50... Qf3+ {[%clk 0:00:19.3]} 51. Kh2 {[%clk 0:00:09.4]} 51...
Qf2+ {[%clk 0:00:18.4]} 52. Kh1 {[%clk 0:00:09.9]} 52... Ka6 {[%clk 0:00:18.8]}
53. Bc4+ {[%clk 0:00:08]} 53... Ka7 {[%clk 0:00:19.4]} 54. Qa1+ {[%clk
0:00:07.2]} 54... Kb8 {[%clk 0:00:19.9]} 55. Bf1 {[%clk 0:00:05.8]} 55... Nxe4
{[%clk 0:00:18.8]} 56. Bg2 {[%clk 0:00:04.3]} 56... Ng3+ {[%clk 0:00:16.4]} 57.
Kh2 {[%clk 0:00:04.4]} 57... Nf1+ {[%clk 0:00:17]} 58. Qxf1 {[%clk 0:00:03.4]}
58... Qxf1 {[%clk 0:00:17.6]} 59. Bxf1 {[%clk 0:00:04.3]} 59... Rxc2+ {[%clk
0:00:18.2]} 60. Kg3 {[%clk 0:00:04.9]} 60... Kc7 {[%clk 0:00:18.7]} 61. Bd3
{[%clk 0:00:03.9]} 61... Rb2 {[%clk 0:00:18.7]} 62. Bc5 {[%clk 0:00:03.3]} 62...
Rb3 {[%clk 0:00:18.5]} 63. Kf3 {[%clk 0:00:02]} 63... Rxd3+ {[%clk 0:00:18.9]}
64. Ke4 {[%clk 0:00:02.6]} 64... Rxh3 {[%clk 0:00:19.4]} 65. Bf8 {[%clk
0:00:02.5]} 65... Kd7 {[%clk 0:00:18.5]} 66. Kxe5 {[%clk 0:00:02.1]} 66... Ke8
{[%clk 0:00:19.2]} 67. Bg7 {[%clk 0:00:01.6]} 67... Kf7 {[%clk 0:00:19.9]} 68.
Kf4 {[%clk 0:00:02.1]} 68... Rb3 {[%clk 0:00:19.3]} 69. Ke5 {[%clk 0:00:02.3]}
69... Rb5+ {[%clk 0:00:19.6]} 70. Kf4 {[%clk 0:00:02.6]} 70... Rf5+ {[%clk
0:00:19.8]} 71. Kg4 {[%clk 0:00:02.9]} 71... Rd5 {[%clk 0:00:18.4]} 72. Kf4
{[%clk 0:00:02.7]} 72... Kg8 {[%clk 0:00:18.5]} 73. Kg4 {[%clk 0:00:02.9]} 73...
Rd7 {[%clk 0:00:18.8]} 74. Bf6 {[%clk 0:00:03.3]} 74... Kf7 {[%clk 0:00:18.8]}
75. Bg7 {[%clk 0:00:03.1]} 75... Ke6 {[%clk 0:00:19.5]} 76. Kf4 {[%clk
0:00:03.2]} 76... Rc7 {[%clk 0:00:19.4]} 77. Kg4 {[%clk 0:00:03.2]} 77... Rc4+
{[%clk 0:00:19.2]} 78. Kg5 {[%clk 0:00:03.6]} 78... Rc5+ {[%clk 0:00:19.2]} 79.
Kg4 {[%clk 0:00:04]} 79... Rf5 {[%clk 0:00:17.5]} 80. Bh8 {[%clk 0:00:03.7]}
80... Kd5 {[%clk 0:00:17.9]} 81. Bg7 {[%clk 0:00:04]} 81... Ke4 {[%clk
0:00:18.3]} 82. Bh8 {[%clk 0:00:04.5]} 82... Rh5 {[%clk 0:00:18.5]} 83. Bg7
{[%clk 0:00:04.8]} 83... Rf5 {[%clk 0:00:16.5]} 84. Bh8 {[%clk 0:00:04.8]} 84...
Rf3 {[%clk 0:00:16.4]} 85. Bg7 {[%clk 0:00:04.4]} 85... Rf1 {[%clk 0:00:16.3]}
86. Kg5 {[%clk 0:00:04.2]} 86... Rf5+ {[%clk 0:00:15.9]} 87. Kg4 {[%clk
0:00:04.7]} 87... Kd5 {[%clk 0:00:16.1]} 88. Bh8 {[%clk 0:00:04.6]} 88... Ke6
{[%clk 0:00:16.4]} 89. Bg7 {[%clk 0:00:05.2]} 89... g5 {[%clk 0:00:15.5]} 90.
Bh8 {[%clk 0:00:04.6]} 90... Rd5 {[%clk 0:00:16.1]} 91. Bg7 {[%clk 0:00:04.5]}
91... Kf7 {[%clk 0:00:16.6]} 92. Kh5 {[%clk 0:00:04.7]} 92... Rf5 {[%clk
0:00:14.3]} 93. Bh8 {[%clk 0:00:05]} 93... g4+ {[%clk 0:00:12.4]} 94. Kxg4
{[%clk 0:00:05.1]} 94... Kg6 {[%clk 0:00:13.1]} 95. Bg7 {[%clk 0:00:04.9]} 95...
Rb5 {[%clk 0:00:13.5]} 96. Kf4 {[%clk 0:00:04.9]} 96... Rb4+ {[%clk 0:00:13.8]}
97. Kg3 {[%clk 0:00:05.3]} 97... Kf5 {[%clk 0:00:13.6]} 98. Kh3 {[%clk
0:00:05.2]} 98... Kg5 {[%clk 0:00:12.9]} 99. Kg3 {[%clk 0:00:05.5]} 99... Rb3+
{[%clk 0:00:13.5]} 100. Kg2 {[%clk 0:00:06]} 100... Kf4 {[%clk 0:00:13.8]} 101.
Kh2 {[%clk 0:00:05.1]} 101... Ra3 {[%clk 0:00:14.1]} 102. Kg2 {[%clk 0:00:05.3]}
102... Rd3 {[%clk 0:00:13.7]} 103. Kf2 {[%clk 0:00:05.5]} 103... Rd2+ {[%clk
0:00:13.9]} 104. Ke1 {[%clk 0:00:06]} 104... Ke3 {[%clk 0:00:14]} 105. Kf1
{[%clk 0:00:05.4]} 105... Rc2 {[%clk 0:00:13.2]} 106. Kg1 {[%clk 0:00:02.8]}
106... Kf3 {[%clk 0:00:13.6]} 107. Bh8 {[%clk 0:00:03]} 107... Kg3 {[%clk
0:00:12.5]} 108. Kf1 {[%clk 0:00:03.4]} 108... Kf3 {[%clk 0:00:12.2]} 109. Ke1
{[%clk 0:00:03.3]} 109... Ke3 {[%clk 0:00:12]} 110. Kd1 {[%clk 0:00:03.6]}
110... Kd3 {[%clk 0:00:12.7]} 111. Bg7 {[%clk 0:00:03.3]} 111... Rh2 {[%clk
0:00:13.2]} 112. Ke1 {[%clk 0:00:03.3]} 112... Rg2 {[%clk 0:00:09]} 113. Kf1
{[%clk 0:00:03.3]} 113... Rh2 {[%clk 0:00:08.9]} 114. Kg1 {[%clk 0:00:03.5]}
114... Re2 {[%clk 0:00:09.5]} 115. Kf1 {[%clk 0:00:03.8]} 115... Ke3 {[%clk
0:00:09.6]} 116. Bh8 {[%clk 0:00:02.9]} 116... Kf3 {[%clk 0:00:10]} 117. Bg7
{[%clk 0:00:03.5]} 117... Rh2 {[%clk 0:00:09]} 118. Ke1 {[%clk 0:00:03.9]}
118... Rh3 {[%clk 0:00:08]} 119. Kd1 {[%clk 0:00:03.5]} 119... Rg3 {[%clk
0:00:08.1]} 120. Ke1 {[%clk 0:00:03.7]} 120... Rg6 {[%clk 0:00:08.6]} 121. Kd1
{[%clk 0:00:03.2]} 121... Kg4 {[%clk 0:00:09.2]} 122. Ke2 {[%clk 0:00:03.4]}
122... Kg5 {[%clk 0:00:09.9]} 123. Kf3 {[%clk 0:00:03.8]} 123... Rxh6 {[%clk
0:00:10.5]} 124. Bxh6+ {[%clk 0:00:03.6]} 124... Kxh6 {[%clk 0:00:11.1]} 125.
Kg2 {[%clk 0:00:04.2]} 125... Kg5 {[%clk 0:00:11.7]} 126. Kh1 {[%clk 0:00:05.1]}
126... Kh4 {[%clk 0:00:10.4]} 127. Kg1 {[%clk 0:00:06]} 127... Kg3 {[%clk
0:00:10.4]} 128. Kh1 {[%clk 0:00:06.9]} 128... h5 {[%clk 0:00:11.2]} 129. Kg1
{[%clk 0:00:07.8]} 129... h4 {[%clk 0:00:12.1]} 130. Kh1 {[%clk 0:00:08.7]}
130... h3 {[%clk 0:00:13]} 131. Kg1 {[%clk 0:00:09.2]} 131... h2+ {[%clk
0:00:13.9]} 132. Kh1 {[%clk 0:00:10.1]} 132... Kh3 {[%clk 0:00:13.9]} 1/2-1/2

[Event "Early-Titled-Tuesday-Blitz-March-05-2024"]
[Site "Chess.com"]
[Date "2024.03.05"]
[Round "1"]
[White "lucasran"]
[Black "MAGMAchess02"]
[Result "1-0"]
[WhiteElo "2601"]
[BlackElo "2276"]
[TimeControl "180+1"]
[EndTime "8:10:49 PST"]
[Termination "lucasran won on time"]

1. Nf3 {[%clk 0:02:59.8]} 1... Nf6 {[%clk 0:02:59.1]} 2. c4 {[%clk 0:02:55.6]}
2... c5 {[%clk 0:02:59.2]} 3. g3 {[%clk 0:02:52.9]} 3... Nc6 {[%clk 0:02:59.1]}
4. Bg2 {[%clk 0:02:51.7]} 4... d5 {[%clk 0:02:59.3]} 5. cxd5 {[%clk 0:02:52.1]}
5... Nxd5 {[%clk 0:03:00.2]} 6. Nc3 {[%clk 0:02:52.8]} 6... Nc7 {[%clk
0:02:59.9]} 7. d3 {[%clk 0:02:52]} 7... e5 {[%clk 0:02:59.9]} 8. Nd2 {[%clk
0:02:52.2]} 8... Be7 {[%clk 0:02:57.7]} 9. Nc4 {[%clk 0:02:51.3]} 9... f6 {[%clk
0:02:52.5]} 10. O-O {[%clk 0:02:42.7]} 10... O-O {[%clk 0:02:52.8]} 11. Bxc6
{[%clk 0:02:40.5]} 11... bxc6 {[%clk 0:02:52.8]} 12. Be3 {[%clk 0:02:29.4]}
12... Nd5 {[%clk 0:02:51.4]} 13. Qd2 {[%clk 0:02:27.2]} 13... Nxe3 {[%clk
0:02:37.6]} 14. Qxe3 {[%clk 0:02:28.1]} 14... Be6 {[%clk 0:02:35.2]} 15. b3
{[%clk 0:01:58.8]} 15... Qd4 {[%clk 0:02:32.6]} 16. Qxd4 {[%clk 0:01:58.2]}
16... cxd4 {[%clk 0:02:30.9]} 17. Na4 {[%clk 0:01:58.5]} 17... Rab8 {[%clk
0:02:22.7]} 18. Rac1 {[%clk 0:01:56.6]} 18... Bb4 {[%clk 0:02:10.6]} 19. Rc2
{[%clk 0:01:54.1]} 19... Rfc8 {[%clk 0:02:03.3]} 20. Nd2 {[%clk 0:01:51.4]}
20... Bd5 {[%clk 0:01:49.8]} 21. Nc5 {[%clk 0:01:47.5]} 21... Rb5 {[%clk
0:01:41.3]} 22. Na4 {[%clk 0:01:38.4]} 22... f5 {[%clk 0:01:29.9]} 23. Nf3
{[%clk 0:01:24.3]} 23... Bd6 {[%clk 0:01:28.9]} 24. Rfc1 {[%clk 0:01:21.9]}
24... Ba3 {[%clk 0:01:22]} 25. Rd1 {[%clk 0:01:21.6]} 25... Bd6 {[%clk
0:01:20.2]} 26. Nb2 {[%clk 0:01:21.9]} 26... h6 {[%clk 0:00:49.2]} 27. Nc4
{[%clk 0:01:22]} 27... Bxc4 {[%clk 0:00:45.5]} 28. Rxc4 {[%clk 0:01:21.1]} 28...
Kf7 {[%clk 0:00:25.6]} 29. Rdc1 {[%clk 0:01:20.6]} 29... Rb6 {[%clk 0:00:25.9]}
30. Ra4 {[%clk 0:01:20.1]} 30... Rc7 {[%clk 0:00:25.1]} 31. Nd2 {[%clk
0:01:19.8]} 31... Ke6 {[%clk 0:00:21.9]} 32. Nc4 {[%clk 0:01:19.2]} 32... Rb5
{[%clk 0:00:21.3]} 33. Ra6 {[%clk 0:01:18.7]} 33... Bb4 {[%clk 0:00:16.7]} 34.
Nb2 {[%clk 0:01:15]} 34... Bc3 {[%clk 0:00:16.3]} 35. Na4 {[%clk 0:01:15.3]}
35... Ra5 {[%clk 0:00:13.4]} 36. Rxa5 {[%clk 0:00:22.9]} 36... Bxa5 {[%clk
0:00:14.3]} 37. Rc4 {[%clk 0:00:23.1]} 37... Kd6 {[%clk 0:00:07.4]} 38. Nc5
{[%clk 0:00:20.8]} 38... Bb6 {[%clk 0:00:06.1]} 39. Na4 {[%clk 0:00:21]} 39...
c5 {[%clk 0:00:05.2]} 40. f3 {[%clk 0:00:21.3]} 40... Ba5 {[%clk 0:00:03.7]} 41.
Rc2 {[%clk 0:00:21.6]} 41... Bb4 {[%clk 0:00:03.5]} 42. Nb2 {[%clk 0:00:22.1]}
42... Kd5 {[%clk 0:00:03.3]} 43. Nc4 {[%clk 0:00:22.5]} 43... e4 {[%clk
0:00:03.6]} 44. fxe4+ {[%clk 0:00:23.4]} 44... fxe4 {[%clk 0:00:04.1]} 45. Kg2
{[%clk 0:00:24.3]} 45... e3 {[%clk 0:00:04.4]} 46. Rc1 {[%clk 0:00:24.9]} 46...
Rf7 {[%clk 0:00:04.9]} 47. Rf1 {[%clk 0:00:25.2]} 47... Rxf1 {[%clk 0:00:04.5]}
48. Kxf1 {[%clk 0:00:26.1]} 48... a5 {[%clk 0:00:03.9]} 49. a4 {[%clk
0:00:25.9]} 49... Ke6 {[%clk 0:00:03.8]} 50. Kg2 {[%clk 0:00:26.4]} 50... Kf5
{[%clk 0:00:04.3]} 51. Kf3 {[%clk 0:00:26.7]} 51... g5 {[%clk 0:00:05]} 52. g4+
{[%clk 0:00:23.9]} 52... Kf6 {[%clk 0:00:04.6]} 53. Ke4 {[%clk 0:00:24.5]} 53...
Ke6 {[%clk 0:00:05.1]} 54. h3 {[%clk 0:00:24.8]} 54... Be1 {[%clk 0:00:04.5]}
55. Ne5 {[%clk 0:00:19.1]} 55... Bg3 {[%clk 0:00:04.9]} 56. Nc6 {[%clk
0:00:17.7]} 56... Bc7 {[%clk 0:00:04.6]} 57. Na7 {[%clk 0:00:17.9]} 57... Bb6
{[%clk 0:00:03.3]} 58. Nb5 {[%clk 0:00:17.9]} 58... Bd8 {[%clk 0:00:02.8]} 59.
Na3 {[%clk 0:00:18.4]} 59... Bb6 {[%clk 0:00:03.3]} 60. Nc4 {[%clk 0:00:19.1]}
60... Bc7 {[%clk 0:00:04.2]} 61. Nb2 {[%clk 0:00:19.3]} 61... Bb6 {[%clk
0:00:04.7]} 62. Nc4 {[%clk 0:00:16.8]} 62... Bc7 {[%clk 0:00:05.5]} 63. Na3
{[%clk 0:00:17]} 63... Bb6 {[%clk 0:00:05]} 64. Kf3 {[%clk 0:00:13.8]} 64... Bd8
{[%clk 0:00:04.8]} 65. Kg3 {[%clk 0:00:13.6]} 65... Bc7+ {[%clk 0:00:05.2]} 66.
Kg2 {[%clk 0:00:14.1]} 66... Bd8 {[%clk 0:00:05.5]} 67. Nb5 {[%clk 0:00:14.1]}
67... Bb6 {[%clk 0:00:05.2]} 68. Kg3 {[%clk 0:00:14.6]} 68... Ke5 {[%clk
0:00:04.6]} 69. h4 {[%clk 0:00:14.7]} 69... Bd8 {[%clk 0:00:03.7]} 70. hxg5
{[%clk 0:00:15.3]} 70... hxg5 {[%clk 0:00:03.7]} 71. Kf3 {[%clk 0:00:16]} 71...
Bb6 {[%clk 0:00:03.9]} 72. Na3 {[%clk 0:00:16.7]} 72... Bc7 {[%clk 0:00:03.6]}
73. Nc4+ {[%clk 0:00:17.3]} 73... Kd5 {[%clk 0:00:04.1]} 74. Na3 {[%clk
0:00:17.9]} 74... Bd8 {[%clk 0:00:04.3]} 75. Nb5 {[%clk 0:00:17.6]} 75... Bb6
{[%clk 0:00:04.7]} 76. Kg3 {[%clk 0:00:17.5]} 76... Bd8 {[%clk 0:00:04.5]} 77.
Kg2 {[%clk 0:00:18]} 77... Bb6 {[%clk 0:00:05]} 78. Kf3 {[%clk 0:00:18.7]} 78...
Bd8 {[%clk 0:00:05.5]} 79. Na3 {[%clk 0:00:18.2]} 79... Bb6 {[%clk 0:00:04.5]}
80. Nc2 {[%clk 0:00:19.1]} 80... Bc7 {[%clk 0:00:04.7]} 81. Ne1 {[%clk
0:00:19.6]} 81... Bf4 {[%clk 0:00:04.5]} 82. Kg2 {[%clk 0:00:17.8]} 82... Be5
{[%clk 0:00:03.4]} 83. Kh3 {[%clk 0:00:16]} 83... Bf4 {[%clk 0:00:02.8]} 84. Nc2
{[%clk 0:00:15.3]} 84... Bc7 {[%clk 0:00:02.8]} 85. Kg2 {[%clk 0:00:14.9]} 85...
Bf4 {[%clk 0:00:03.2]} 86. Kf3 {[%clk 0:00:15.7]} 86... Bc7 {[%clk 0:00:03.8]}
87. Ne1 {[%clk 0:00:11.4]} 87... Bf4 {[%clk 0:00:03.9]} 88. Kg2 {[%clk
0:00:12.1]} 88... Bc7 {[%clk 0:00:04.5]} 89. Nf3 {[%clk 0:00:12.7]} 89... Bf4
{[%clk 0:00:04.7]} 90. Kf1 {[%clk 0:00:12.4]} 90... Kd6 {[%clk 0:00:04.8]} 91.
Ke1 {[%clk 0:00:12.8]} 91... Kd5 {[%clk 0:00:05.4]} 92. Kd1 {[%clk 0:00:13.2]}
92... Kd6 {[%clk 0:00:06]} 93. Ng1 {[%clk 0:00:11.3]} 93... Kd5 {[%clk 0:00:06]}
94. Nh3 {[%clk 0:00:10.4]} 94... Ke5 {[%clk 0:00:05.7]} 95. Ke1 {[%clk
0:00:10.8]} 95... Bg3+ {[%clk 0:00:06]} 96. Kf1 {[%clk 0:00:11.3]} 96... Bh4
{[%clk 0:00:06.1]} 97. Kg2 {[%clk 0:00:11.7]} 97... Kd5 {[%clk 0:00:06.1]} 98.
Kf3 {[%clk 0:00:12.2]} 98... Ke5 {[%clk 0:00:06.8]} 99. Kg2 {[%clk 0:00:11.8]}
99... Kd5 {[%clk 0:00:07.2]} 100. Ng1 {[%clk 0:00:12.5]} 100... Bf2 {[%clk
0:00:05]} 101. Nf3 {[%clk 0:00:12.9]} 101... Bh4 {[%clk 0:00:02.9]} 102. Kh3
{[%clk 0:00:12.6]} 102... Be1 {[%clk 0:00:02.8]} 103. Nxe1 {[%clk 0:00:12.9]}
1-0

[Event "Early-Titled-Tuesday-Blitz-March-05-2024"]
[Site "Chess.com"]
[Date "2024.03.05"]
[Round "2"]
[White "JonSnowNW1"]
[Black "Nikolakis2014"]
[Result "1-0"]
[WhiteElo "2545"]
[BlackElo "2755"]
[TimeControl "180+1"]
[EndTime "8:13:47 PST"]
[Termination "JonSnowNW1 won by resignation"]

1. c4 {[%clk 0:02:57.2]} 1... Nf6 {[%clk 0:02:57.9]} 2. Nc3 {[%clk 0:02:56.7]}
2... e6 {[%clk 0:02:57.5]} 3. e4 {[%clk 0:02:56.8]} 3... d5 {[%clk 0:02:57.1]}
4. e5 {[%clk 0:02:57.4]} 4... d4 {[%clk 0:02:57.1]} 5. exf6 {[%clk 0:02:57.8]}
5... dxc3 {[%clk 0:02:57.4]} 6. bxc3 {[%clk 0:02:57.2]} 6... Qxf6 {[%clk
0:02:56.5]} 7. Be2 {[%clk 0:02:51.2]} 7... Nd7 {[%clk 0:02:47]} 8. d4 {[%clk
0:02:45.6]} 8... b6 {[%clk 0:02:46.3]} 9. Bf3 {[%clk 0:02:44]} 9... Rb8 {[%clk
0:02:46.4]} 10. Ne2 {[%clk 0:02:35.7]} 10... Bb7 {[%clk 0:02:32.4]} 11. Bxb7
{[%clk 0:02:35.7]} 11... Rxb7 {[%clk 0:02:32.3]} 12. O-O {[%clk 0:02:36.2]}
12... Bd6 {[%clk 0:02:30.5]} 13. Qa4 {[%clk 0:02:34.5]} 13... c5 {[%clk
0:02:02.3]} 14. Qc6 {[%clk 0:02:21.8]} 1-0

[Event "Early-Titled-Tuesday-Blitz-March-05-2024"]
[Site "Chess.com"]
[Date "2024.03.05"]
[Round "2"]
[White "maximnovik"]
[Black "Oleksandr_Bortnyk"]
[Result "0-1"]
[WhiteElo "2610"]
[BlackElo "2970"]
[TimeControl "180+1"]
[EndTime "8:14:03 PST"]
[Termination "Oleksandr_Bortnyk won by resignation"]

1. e4 {[%clk 0:03:00.9]} 1... Nf6 {[%clk 0:03:00]} 2. e5 {[%clk 0:03:01.1]} 2...
Nd5 {[%clk 0:03:00.6]} 3. d4 {[%clk 0:03:01.4]} 3... d6 {[%clk 0:03:01.1]} 4.
Nf3 {[%clk 0:03:01.4]} 4... dxe5 {[%clk 0:03:01.6]} 5. Nxe5 {[%clk 0:03:01]}
5... c6 {[%clk 0:03:02.3]} 6. Bd3 {[%clk 0:03:00.8]} 6... Nd7 {[%clk 0:03:02.3]}
7. Nf3 {[%clk 0:02:59.8]} 7... N7f6 {[%clk 0:03:02.6]} 8. h3 {[%clk 0:02:59.2]}
8... Nb4 {[%clk 0:03:03]} 9. Be2 {[%clk 0:02:55.5]} 9... Bf5 {[%clk 0:03:03]}
10. Na3 {[%clk 0:02:55.1]} 10... e6 {[%clk 0:03:03.5]} 11. O-O {[%clk
0:02:52.5]} 11... Bd6 {[%clk 0:03:02.7]} 12. Nh4 {[%clk 0:02:50.1]} 12... Be4
{[%clk 0:02:59.3]} 13. c3 {[%clk 0:02:42]} 13... Nbd5 {[%clk 0:02:57.2]} 14. Nc4
{[%clk 0:02:38.1]} 14... Bc7 {[%clk 0:02:50.6]} 15. Ne5 {[%clk 0:02:26.1]} 15...
Bxe5 {[%clk 0:02:49.4]} 16. dxe5 {[%clk 0:02:25.3]} 16... Nd7 {[%clk 0:02:50.3]}
17. g3 {[%clk 0:01:59.5]} 17... g5 {[%clk 0:02:34.5]} 18. Ng2 {[%clk 0:01:56.3]}
18... Bxg2 {[%clk 0:02:27.2]} 19. Kxg2 {[%clk 0:01:55.9]} 19... Nxe5 {[%clk
0:02:27.8]} 20. Qd4 {[%clk 0:01:50.2]} 20... Ng6 {[%clk 0:02:26.3]} 21. c4
{[%clk 0:01:43.7]} 21... Ndf4+ {[%clk 0:02:26.4]} 0-1

[Event "Early-Titled-Tuesday-Blitz-March-05-2024"]
[Site "Chess.com"]
[Date "2024.03.05"]
[Round "2"]
[White "Harry_Rakkel"]
[Black "Grindaveci"]
[Result "1-0"]
[WhiteElo "2684"]
[BlackElo "2406"]
[TimeControl "180+1"]
[EndTime "8:14:04 PST"]
[Termination "Harry_Rakkel won by resignation"]

1. e4 {[%clk 0:02:56.5]} 1... e5 {[%clk 0:02:22.4]} 2. Nf3 {[%clk 0:02:52.1]}
2... Nc6 {[%clk 0:02:22.6]} 3. Bc4 {[%clk 0:02:51.3]} 3... Nf6 {[%clk
0:02:22.8]} 4. Ng5 {[%clk 0:02:51.2]} 4... d5 {[%clk 0:02:23.2]} 5. exd5 {[%clk
0:02:51.3]} 5... Na5 {[%clk 0:02:23.6]} 6. Bb5+ {[%clk 0:02:51.6]} 6... c6
{[%clk 0:02:24.3]} 7. dxc6 {[%clk 0:02:52.1]} 7... bxc6 {[%clk 0:02:25.2]} 8.
Bd3 {[%clk 0:02:52.3]} 8... Nd5 {[%clk 0:02:24.5]} 9. h4 {[%clk 0:02:51.4]} 9...
h6 {[%clk 0:02:23.8]} 10. Qh5 {[%clk 0:02:49.8]} 10... Qf6 {[%clk 0:02:24.4]}
11. Nh7 {[%clk 0:02:47.4]} 11... Rxh7 {[%clk 0:02:18.7]} 12. Bxh7 {[%clk
0:02:48.3]} 12... g6 {[%clk 0:02:17.1]} 13. Qe2 {[%clk 0:02:48.1]} 13... Qg7
{[%clk 0:02:10.4]} 14. d4 {[%clk 0:02:37.3]} 14... Be6 {[%clk 0:01:59.2]} 15.
Bd2 {[%clk 0:02:27.4]} 15... exd4 {[%clk 0:01:42.1]} 16. Bxa5 {[%clk 0:02:21.3]}
16... d3 {[%clk 0:01:42.4]} 17. cxd3 {[%clk 0:02:09.4]} 1-0

[Event "Early-Titled-Tuesday-Blitz-March-05-2024"]
[Site "Chess.com"]
[Date "2024.03.05"]
[Round "2"]
[White "mishanick"]
[Black "Leo_C"]
[Result "1-0"]
[WhiteElo "3067"]
[BlackElo "2627"]
[TimeControl "180+1"]
[EndTime "8:14:32 PST"]
[Termination "mishanick won by resignation"]

1. d4 {[%clk 0:03:00.9]} 1... Nf6 {[%clk 0:02:59.9]} 2. c4 {[%clk 0:03:01.7]}
2... e6 {[%clk 0:03:00.4]} 3. Nf3 {[%clk 0:03:02.5]} 3... d5 {[%clk 0:03:00.7]}
4. Nc3 {[%clk 0:03:03.2]} 4... Bb4 {[%clk 0:02:56.4]} 5. Bg5 {[%clk 0:03:02.5]}
5... h6 {[%clk 0:02:55.9]} 6. Bxf6 {[%clk 0:03:03]} 6... Qxf6 {[%clk 0:02:56.8]}
7. Qa4+ {[%clk 0:03:03.3]} 7... Nc6 {[%clk 0:02:56.6]} 8. e3 {[%clk 0:03:04]}
8... O-O {[%clk 0:02:56.4]} 9. Be2 {[%clk 0:03:04.4]} 9... Rd8 {[%clk
0:02:52.3]} 10. O-O {[%clk 0:02:59.6]} 10... dxc4 {[%clk 0:02:45.4]} 11. Qb5
{[%clk 0:02:57.7]} 11... Bd6 {[%clk 0:02:39.9]} 12. Qxc4 {[%clk 0:02:46.6]}
12... a6 {[%clk 0:02:02.7]} 13. Ne4 {[%clk 0:02:27.7]} 13... Qe7 {[%clk
0:02:02.3]} 14. Rac1 {[%clk 0:02:26]} 14... e5 {[%clk 0:01:57.3]} 15. d5 {[%clk
0:02:24.2]} 15... Nb8 {[%clk 0:01:54.3]} 16. Nxd6 {[%clk 0:02:21.4]} 16... cxd6
{[%clk 0:01:54.3]} 17. Qxc8 {[%clk 0:02:16.3]} 17... Rxc8 {[%clk 0:01:55.2]} 18.
Rxc8+ {[%clk 0:02:16.3]} 18... Kh7 {[%clk 0:01:56.1]} 19. Rfc1 {[%clk
0:02:16.7]} 19... g6 {[%clk 0:01:36.3]} 20. R1c7 {[%clk 0:02:11.5]} 20... Qf6
{[%clk 0:01:35]} 21. Rxb7 {[%clk 0:02:09.2]} 21... Qf5 {[%clk 0:01:29.5]} 22. e4
{[%clk 0:02:06.7]} 1-0